fUSD/lending_fUSD_20250506
["ID","MTS","AMOUNT","RATE_DAILY","PERIOD"]
[360055610,1746526242420,-466.49396675,0.00019982,2]
[360055612,1746526242429,-462.36877867,0.00019982,2]
[360055614,1746526242439,-481.42725444,0.00019982,2]
[360055616,1746526242448,-481.8573953,0.00019982,2]
[360055617,1746526242458,-450.0,0.00019982,2]
[360055618,1746526242468,-475.05191907,0.00019982,2]
[360055619,1746526242477,-475.0186203,0.00019982,2]
[360055620,1746526242486,-459.30573162,0.00019982,2]
[360055621,1746526242495,-479.68252837,0.00019982,2]
[360055622,1746526242504,-465.42279837,0.00019982,2]
[360055624,1746526242513,-485.00383769,0.00019982,2]
[360055626,1746526242523,-483.7440026,0.00019982,2]
[360055627,1746526242532,-450.0,0.00019982,2]
[360055628,1746526242541,-450.0,0.00019982,2]
[360055629,1746526242550,-461.64004196,0.00019982,2]
[360055630,1746526242559,-475.29558396,0.00019982,2]
[360055631,1746526242569,-450.0,0.00019982,2]
[360055632,1746526242578,-568.23364699,0.00019982,2]
[360055633,1746526242588,-474.63529266,0.00019982,2]
[360055634,1746526242597,-450.0,0.00019982,2]
[360055635,1746526242606,-514.99906856,0.00019982,2]
[360055636,1746526242616,-465.07820557,0.00019982,2]
[360055637,1746526242625,-471.55466443,0.00019982,2]
[360055638,1746526242634,-460.11948194,0.00019982,2]
[360055639,1746526242643,-474.44122878,0.00019982,2]
[360055640,1746526242653,-553.32897821,0.00019982,2]
[360055641,1746526242662,-468.24412755,0.00019982,2]
[360055642,1746526242671,-450.0,0.00019982,2]
[360055643,1746526242680,-450.0,0.00019982,2]
[360055644,1746526242689,-450.0,0.00019982,2]
[360055645,1746526242698,-453.54790288,0.00019982,2]
[360055646,1746526242707,-450.0,0.00019982,2]
[360055647,1746526242717,-468.5331335,0.00019982,2]
[360055648,1746526242726,-534.88429947,0.00019982,2]
[360055649,1746526242736,-467.0687563,0.00019982,2]
[360055650,1746526242745,-475.16314777,0.00019982,2]
[360055651,1746526242754,-460.05470542,0.00019982,2]
[360055652,1746526242763,-450.0,0.00019982,2]
[360055653,1746526242772,-455.52091867,0.00019982,2]
[360055654,1746526242781,-450.0,0.00019982,2]
[360055655,1746526242791,-450.0,0.00019982,2]
[360055656,1746526242800,-450.0,0.00019982,2]
[360055657,1746526242810,-450.0,0.00019982,2]
[360055658,1746526242819,-469.62413534,0.00019982,2]
[360055659,1746526242828,-13734.27,0.00019982,2]
[360055660,1746526242837,-463.62436241,0.00019982,2]
[360055661,1746526242846,-466.29695875,0.00019982,2]
[360055662,1746526242855,-469.21305301,0.00019982,2]
[360055663,1746526242864,-462.22926261,0.00019982,2]
[360055664,1746526242874,-450.0,0.00019982,2]
[360055665,1746526242883,-468.91948727,0.00019982,2]
[360055666,1746526242893,-450.0,0.00019982,2]
[360055667,1746526242902,-450.0,0.00019982,2]
[360055668,1746526242911,-462.20501486,0.00019982,2]
[360055669,1746526242920,-456.58586258,0.00019982,2]
[360055670,1746526242929,-450.0,0.00019982,2]
[360055671,1746526242939,-454.41830708,0.00019982,2]
[360055672,1746526243071,-459.24291318,0.00019982,2]
[360055673,1746526243081,-472.42230078,0.00019982,2]
[360055674,1746526243090,-493.81771151,0.00019982,2]
[360055675,1746526243099,-473.33844431,0.00019982,2]
[360055676,1746526243108,-530.0097799,0.00019982,2]
[360055677,1746526243117,-450.0,0.00019982,2]
[360055678,1746526243127,-450.0,0.00019982,2]
[360055679,1746526243136,-469.92190891,0.00019982,2]
[360055680,1746526243145,-465.76055153,0.00019982,2]
[360055681,1746526243154,-460.32483243,0.00019982,2]
[360055682,1746526243163,-450.0,0.00019982,2]
[360055683,1746526243174,-450.0,0.00019982,2]
[360055684,1746526243185,-527.82644784,0.00019982,2]
[360055685,1746526243195,-450.0,0.00019982,2]
[360055686,1746526243204,-450.0,0.00019982,2]
[360055687,1746526243213,-450.0,0.00019982,2]
[360055688,1746526243224,-472.16891712,0.00019982,2]
[360055689,1746526243233,-475.54716438,0.00019982,2]
[360055690,1746526243242,-406.18253048,0.00019982,2]
[360055691,1746526243252,-450.0,0.00019982,2]
[360055692,1746526243262,-576.34903,0.00019982,2]
[360055693,1746526243271,-450.0,0.00019982,2]
[360055694,1746526243281,-381.5186004,0.00019982,2]
[360055695,1746526243290,-450.0,0.00019982,2]
[360055696,1746526243299,-475.61672099,0.00019982,2]
[360055697,1746526243308,-478.00162711,0.00019982,2]
[360055698,1746526243317,-324.19631248,0.00019982,2]
[360055699,1746526243327,-450.0,0.00019982,2]
[360055700,1746526243336,-450.0,0.00019982,2]
[360055701,1746526243346,-450.0,0.00019982,2]
[360055702,1746526243355,-476.54204296,0.00019982,2]
[360055703,1746526243365,-450.0,0.00019982,2]
[360055704,1746526243374,-500.72399423,0.00019982,2]
[360055705,1746526243383,-450.0,0.00019982,2]
[360055706,1746526243393,-456.73476036,0.00019982,2]
[360055707,1746526243402,-450.0,0.00019982,2]
[360055708,1746526243412,-450.0,0.00019982,2]
[360055709,1746526243421,-450.0,0.00019982,2]
[360055710,1746526243431,-450.0,0.00019982,2]
[360055711,1746526243441,-450.0,0.00019982,2]
[360055712,1746526243451,-450.0,0.00019982,2]
[360055713,1746526243460,-450.0,0.00019982,2]
[360055714,1746526243470,-450.0,0.00019982,2]
[360055715,1746526243480,-473.19636844,0.00019982,2]
[360055716,1746526243489,-450.0,0.00019982,2]
[360055717,1746526243499,-450.0,0.00019982,2]
[360055718,1746526243508,-450.0,0.00019982,2]
[360055719,1746526243517,-450.0,0.00019982,2]
[360055720,1746526243526,-469.67,0.00019982,2]
[360055721,1746526243535,-450.0,0.00019982,2]
[360055722,1746526243545,-450.0,0.00019982,2]
[360055723,1746526243554,-368.96836652,0.00019982,2]
[360055724,1746526243563,-179.5271861,0.00019982,2]
[360055725,1746526243573,-499.4,0.00019982,2]
[360055726,1746526243582,-450.0,0.00019982,2]
[360055727,1746526243592,-450.0,0.00019982,2]
[360055728,1746526243601,-450.0,0.00019982,2]
[360055729,1746526243611,-450.0,0.00019982,2]
[360055730,1746526243620,-450.0,0.00019982,2]
[360055731,1746526243629,-323.12287038,0.00019982,2]
[360055732,1746526243639,-450.0,0.00019982,2]
[360055733,1746526243649,-477.09067849,0.00019982,2]
[360055734,1746526243658,-461.02728098,0.00019982,2]
[360055735,1746526243667,-562.84266766,0.00019983,2]
[360055736,1746526243677,-450.0,0.00019983,2]
[360055737,1746526243687,-496.75958284,0.00019983,2]
[360055738,1746526243696,-450.0,0.00019983,2]
[360055739,1746526243705,-450.0,0.00019983,2]
[360055740,1746526243715,-450.0,0.00019983,2]
[360055741,1746526243724,-450.0,0.00019983,2]
[360055742,1746526243734,-1041.1457132,0.00019983,2]
[360055743,1746526243743,-493.48739341,0.00019983,2]
[360055744,1746526243752,-459.76474974,0.00019983,2]
[360055745,1746526243761,-539.12189807,0.00019983,2]
[360055746,1746526243771,-457.80588168,0.00019983,2]
[360055747,1746526243780,-464.76620649,0.00019983,2]
[360055748,1746526243789,-485.26824845,0.00019983,2]
[360055749,1746526243799,-450.0,0.00019983,2]
[360055750,1746526243809,-516.92207942,0.00019983,2]
[360055751,1746526243819,-450.0,0.00019983,2]
[360055752,1746526243829,-450.0,0.00019983,2]
[360055753,1746526243838,-450.0,0.00019983,2]
[360055754,1746526243848,-450.0,0.00019983,2]
[360055755,1746526243857,-450.0,0.00019983,2]
[360055756,1746526243866,-450.0,0.00019983,2]
[360055757,1746526243875,-450.0,0.00019983,2]
[360055758,1746526243884,-454.44093338,0.00019983,2]
[360055759,1746526243893,-463.00096957,0.00019983,2]
[360055760,1746526243902,-450.0,0.00019983,2]
[360055761,1746526243911,-366.31219986,0.00019983,2]
[360055762,1746526243920,-450.0,0.00019983,2]
[360055763,1746526243930,-450.0,0.00019983,2]
[360055764,1746526243939,-450.0,0.00019983,2]
[360055765,1746526243947,-450.0,0.00019983,2]
[360055766,1746526243957,-450.0,0.00019983,2]
[360055767,1746526243966,-450.0,0.00019983,2]
[360055768,1746526243975,-450.0,0.00019983,2]
[360055769,1746526243985,-450.0,0.00019983,2]
[360055770,1746526243994,-461.15695493,0.00019983,2]
[360055771,1746526244003,-308.94026433,0.00019983,2]
[360055772,1746526244012,-450.0,0.00019983,2]
[360055773,1746526244021,-450.0,0.00019983,2]
[360055774,1746526244030,-483.17,0.00019983,2]
[360055775,1746526244039,-450.0,0.00019984,2]
[360055776,1746526244049,-450.0,0.00019984,2]
[360055777,1746526244058,-450.0,0.00019984,2]
[360055778,1746526244066,-544.58,0.00019984,2]
[360055779,1746526244075,-358.0,0.00019984,2]
[360055780,1746526244084,-450.0,0.00019984,2]
[360055781,1746526244094,-191.8929911,0.00019984,2]
[360055782,1746526244104,-450.0,0.00019984,2]
[360055783,1746526244114,-450.0,0.00019984,2]
[360055784,1746526244123,-450.0,0.00019984,2]
[360055785,1746526244132,-596.38,0.00019984,2]
[360055786,1746526244141,-1693.61,0.00019984,2]
[360055787,1746526244150,-3482.9775302,0.00019985,2]
[360055788,1746526244159,-19929.5947654,0.00019986,2]
[360055789,1746526244168,-534.843126,0.00019986,2]
[360055790,1746526244180,-3703.396678,0.00019986,2]
[360055791,1746526244189,-3923.8158258,0.00019986,2]
[360055792,1746526244198,-4144.2349737,0.00019986,2]
[360055793,1746526244207,-4364.6541215,0.00019986,2]
[360055794,1746526244218,-4585.0732694,0.00019986,2]
[360055795,1746526244227,-208.34877114,0.00019988,2]
[360055796,1746526244237,-208.34877114,0.0001999,2]
[360055797,1746526244247,-450.0,0.00019997,2]
[360055798,1746526244259,-171.64935831,0.00019997,2]
[360055799,1746526244269,-180.85404785,0.00019997,2]
[360055800,1746526244280,-500.0,0.00019997,2]
[360055801,1746526244289,-259.30693834,0.00019997,2]
[360055802,1746526244298,-500.0,0.00019997,2]
[360055803,1746526244307,-500.0,0.00019997,2]
[360055804,1746526244316,-500.0,0.00019997,2]
[360055805,1746526244326,-500.0,0.00019997,2]
[360055806,1746526244335,-450.0,0.00019997,2]
[360055807,1746526244344,-450.0,0.00019997,2]
[360055808,1746526244353,-450.0,0.00019997,2]
[360055809,1746526244362,-450.0,0.00019997,2]
[360055810,1746526244372,-450.0,0.00019997,2]
[360055811,1746526244381,-450.0,0.00019997,2]
[360055812,1746526244391,-450.0,0.00019997,2]
[360055813,1746526244401,-450.0,0.00019997,2]
[360055814,1746526244410,-450.0,0.00019997,2]
[360055815,1746526244419,-450.0,0.00019997,2]
[360055816,1746526244429,-450.0,0.00019997,2]
[360055817,1746526244438,-450.0,0.00019997,2]
[360055818,1746526244449,-450.0,0.00019997,2]
[360055819,1746526244460,-450.0,0.00019997,2]
[360055820,1746526244470,-450.0,0.00019997,2]
[360055821,1746526244479,-450.0,0.00019997,2]
[360055822,1746526244489,-450.0,0.00019997,2]
[360055823,1746526244498,-450.0,0.00019997,2]
[360055824,1746526244507,-450.0,0.00019997,2]
[360055825,1746526244517,-183.12576303,0.00019997,2]
[360055826,1746526244526,-450.0,0.00019997,2]
[360055827,1746526244535,-409.80050933,0.00019997,2]
[360055828,1746526244718,-40.19949067,0.00019997,2]
[360055829,1746526244728,-450.0,0.00019997,2]
[360055830,1746526244737,-450.0,0.00019997,2]
[360055831,1746526244746,-450.0,0.00019997,2]
[360055832,1746526244756,-450.0,0.00019997,2]
[360055833,1746526244766,-450.0,0.00019997,2]
[360055834,1746526244777,-450.0,0.00019997,2]
[360055835,1746526244786,-614.32,0.00019997,2]
[360055836,1746526244795,-2358.03,0.00019997,2]
[360055837,1746526244804,-450.0,0.00019997,2]
[360055838,1746526244813,-450.0,0.00019997,2]
[360055839,1746526244822,-450.0,0.00019997,2]
[360055840,1746526244831,-1437.65,0.00019997,2]
[360055841,1746526244839,-450.0,0.00019997,2]
[360055842,1746526244848,-450.0,0.00019997,2]
[360055843,1746526244858,-450.0,0.00019997,2]
[360055844,1746526244867,-450.0,0.00019997,2]
[360055845,1746526244875,-450.0,0.00019997,2]
[360055846,1746526244884,-450.0,0.00019997,2]
[360055847,1746526244894,-582.18,0.00019997,2]
[360055848,1746526244903,-450.0,0.00019997,2]
[360055849,1746526244913,-450.0,0.00019997,2]
[360055850,1746526244922,-450.0,0.00019997,2]
[360055851,1746526244931,-663.82,0.00019997,2]
[360055852,1746526244940,-450.0,0.00019997,2]
[360055853,1746526244949,-450.0,0.00019997,2]
[360055854,1746526244958,-673.83,0.00019997,2]
[360055855,1746526244967,-627.07,0.00019997,2]
[360055856,1746526244977,-2730.37,0.00019997,2]
[360055857,1746526244986,-231.44413609,0.00019997,2]
[360055858,1746526244996,-325.6718372,0.00019997,2]
[360055859,1746526245005,-450.0,0.00019997,2]
[360055860,1746526245015,-450.0,0.00019997,2]
[360055861,1746526245024,-450.0,0.00019997,2]
[360055862,1746526245033,-450.0,0.00019997,2]
[360055863,1746526245042,-450.0,0.00019997,2]
[360055864,1746526245052,-450.0,0.00019997,2]
[360055865,1746526245061,-450.0,0.00019997,2]
[360055866,1746526245072,-450.0,0.00019997,2]
[360055867,1746526245081,-206.64168835,0.00019998,2]
[360055868,1746526245090,-1375175.90093868,0.00019998,2]
[360055869,1746526245099,-554.5444878,0.00019998,2]
[360055870,1746526245108,-200.0,0.00019998,2]
[360055871,1746526245117,-358.0,0.00019998,2]
[360055872,1746526245126,-358.0,0.00019998,2]
[360055873,1746526245136,-450.0,0.00019998,2]
[360055874,1746526245145,-461.22,0.00019998,2]
[360055875,1746526245155,-450.0,0.00019998,2]
[360055876,1746526245164,-450.0,0.00019998,2]
[360055877,1746526245175,-282.5,0.00019998,2]
[360055878,1746526245188,-1693.61,0.00019998,2]
[360055879,1746526245198,-1693.61,0.00019998,2]
[360055880,1746526245207,-297.05556142,0.00019998,2]
[360055881,1746526245216,-450.0,0.00019998,2]
[360055882,1746526245226,-450.0,0.00019998,2]
[360055883,1746526245235,-450.0,0.00019998,2]
[360055884,1746526245245,-428.09935014,0.00019998,2]
[360055885,1746526245255,-450.0,0.00019998,2]
[360055886,1746526245265,-450.0,0.00019998,2]
[360055887,1746526245274,-320.91,0.00019998,2]
[360055888,1746526245283,-450.0,0.00019998,2]
[360055889,1746526245293,-450.0,0.00019998,2]
[360055890,1746526245303,-450.0,0.00019998,2]
[360055891,1746526245313,-450.0,0.00019998,2]
[360055892,1746526245322,-216.05,0.00019998,2]
[360055893,1746526245331,-450.0,0.00019998,2]
[360055894,1746526245341,-306.58,0.00019998,2]
[360055895,1746526245350,-450.0,0.00019998,2]
[360055896,1746526245360,-450.0,0.00019998,2]
[360055897,1746526245370,-597.53868336,0.00019998,2]
[360055898,1746526245379,-591.24,0.00019998,2]
[360055899,1746526245389,-450.0,0.00019998,2]
[360055900,1746526245399,-450.0,0.00019998,2]
[360055901,1746526245409,-152.55,0.00019998,2]
[360055902,1746526245418,-450.0,0.00019998,2]
[360055903,1746526245427,-450.0,0.00019998,2]
[360055904,1746526245437,-450.0,0.00019998,2]
[360055905,1746526245446,-450.0,0.00019998,2]
[360055906,1746526245455,-178.12,0.00019998,2]
[360055907,1746526245465,-235.69372707,0.00019998,2]
[360055908,1746526245475,-450.0,0.00019998,2]
[360055909,1746526245484,-548.43766509,0.00019998,2]
[360055910,1746526245494,-450.0,0.00019998,2]
[360055911,1746526245504,-528.28,0.00019998,2]
[360055912,1746526245514,-450.0,0.00019998,2]
[360055913,1746526245523,-523.28,0.00019998,2]
[360055914,1746526245533,-500.0,0.00019998,2]
[360055915,1746526245542,-450.0,0.00019998,2]
[360055916,1746526245552,-450.0,0.00019998,2]
[360055917,1746526245562,-450.0,0.00019998,2]
[360055918,1746526245572,-450.0,0.00019998,2]
[360055919,1746526245581,-450.0,0.00019998,2]
[360055920,1746526245591,-403.85880043,0.00019998,2]
[360055921,1746526245600,-450.0,0.00019998,2]
[360055922,1746526245610,-589.0,0.00019998,2]
[360055923,1746526245620,-450.0,0.00019998,2]
[360055924,1746526245630,-450.0,0.00019998,2]
[360055925,1746526245639,-450.0,0.00019998,2]
[360055926,1746526245648,-450.0,0.00019998,2]
[360055927,1746526245657,-450.0,0.00019998,2]
[360055928,1746526245801,-450.0,0.00019998,2]
[360055929,1746526245811,-614.32,0.00019998,2]
[360055930,1746526245821,-614.32,0.00019998,2]
[360055931,1746526245831,-2358.03,0.00019998,2]
[360055932,1746526245840,-450.0,0.00019998,2]
[360055933,1746526245849,-2358.03,0.00019998,2]
[360055934,1746526245859,-450.0,0.00019998,2]
[360055935,1746526245869,-450.0,0.00019998,2]
[360055936,1746526245879,-450.0,0.00019998,2]
[360055937,1746526245887,-450.0,0.00019998,2]
[360055938,1746526245897,-558.90062963,0.00019998,2]
[360055939,1746526245906,-450.0,0.00019998,2]
[360055940,1746526245916,-450.0,0.00019998,2]
[360055941,1746526245925,-450.0,0.00019998,2]
[360055942,1746526245934,-450.0,0.00019998,2]
[360055943,1746526245944,-450.0,0.00019998,2]
[360055944,1746526245953,-1437.65,0.00019998,2]
[360055945,1746526245962,-1437.65,0.00019998,2]
[360055946,1746526245972,-450.0,0.00019998,2]
[360055947,1746526245982,-450.0,0.00019998,2]
[360055948,1746526245991,-450.0,0.00019998,2]
[360055949,1746526246001,-450.0,0.00019998,2]
[360055950,1746526246010,-450.0,0.00019998,2]
[360055951,1746526246019,-450.0,0.00019998,2]
[360055952,1746526246029,-450.0,0.00019998,2]
[360055953,1746526246038,-450.0,0.00019998,2]
[360055954,1746526246048,-450.0,0.00019998,2]
[360055955,1746526246057,-450.0,0.00019998,2]
[360055956,1746526246068,-450.0,0.00019998,2]
[360055957,1746526246078,-450.0,0.00019998,2]
[360055958,1746526246087,-450.0,0.00019998,2]
[360055959,1746526246097,-350.38,0.00019998,2]
[360055960,1746526246106,-13734.27,0.00019998,2]
[360055961,1746526246116,-450.0,0.00019998,2]
[360055962,1746526246125,-13734.27,0.00019998,2]
[360055963,1746526246134,-13734.27,0.00019998,2]
[360055964,1746526246143,-13734.27,0.00019998,2]
[360055965,1746526246153,-13734.27,0.00019998,2]
[360055966,1746526246162,-13734.27,0.00019998,2]
[360055967,1746526246171,-13734.27,0.00019998,2]
[360055968,1746526246183,-13734.27,0.00019998,2]
[360055969,1746526246193,-13734.27,0.00019998,2]
[360055970,1746526246202,-13734.27,0.00019998,2]
[360055971,1746526246211,-13734.27,0.00019998,2]
[360055972,1746526246222,-13734.27,0.00019998,2]
[360055973,1746526246231,-486.10840378,0.00019998,2]
[360055974,1746526246241,-450.0,0.00019998,2]
[360055975,1746526246251,-450.0,0.00019998,2]
[360055976,1746526246261,-543.18,0.00019998,2]
[360055977,1746526246270,-450.0,0.00019998,2]
[360055978,1746526246279,-450.0,0.00019998,2]
[360055979,1746526246288,-450.0,0.00019998,2]
[360055980,1746526246299,-450.0,0.00019998,2]
[360055981,1746526246308,-450.0,0.00019998,2]
[360055982,1746526246316,-450.0,0.00019998,2]
[360055983,1746526246326,-450.0,0.00019998,2]
[360055984,1746526246336,-450.0,0.00019998,2]
[360055985,1746526246346,-450.0,0.00019998,2]
[360055986,1746526246356,-450.0,0.00019998,2]
[360055987,1746526246366,-450.0,0.00019998,2]
[360055988,1746526246375,-450.0,0.00019998,2]
[360055989,1746526246384,-500.0,0.00019998,2]
[360055990,1746526246393,-457.20114701,0.00019998,2]
[360055991,1746526246403,-300.0,0.00019998,2]
[360055992,1746526246412,-200.0,0.00019998,2]
[360055993,1746526246422,-450.0,0.00019998,2]
[360055994,1746526246431,-450.0,0.00019998,2]
[360055995,1746526246440,-450.0,0.00019998,2]
[360055996,1746526246449,-550.56,0.00019998,2]
[360055997,1746526246459,-284.24,0.00019998,2]
[360055998,1746526246468,-479.99356876,0.00019998,2]
[360055999,1746526246479,-450.0,0.00019998,2]
[360056000,1746526246488,-344.83590271,0.00019998,2]
[360056002,1746526246497,-450.0,0.00019998,2]
[360056004,1746526246507,-450.0,0.00019998,2]
[360056006,1746526246516,-450.0,0.00019998,2]
[360056008,1746526246526,-450.0,0.00019998,2]
[360056009,1746526246536,-450.0,0.00019998,2]
[360056010,1746526246546,-256.14028672,0.00019998,2]
[360056011,1746526246555,-450.0,0.00019998,2]
[360056012,1746526246564,-450.0,0.00019998,2]
[360056013,1746526246574,-450.0,0.00019998,2]
[360056014,1746526246583,-450.0,0.00019998,2]
[360056015,1746526246593,-361.17093858,0.00019998,2]
[360056016,1746526246602,-450.0,0.00019998,2]
[360056017,1746526246612,-450.0,0.00019998,2]
[360056018,1746526246621,-450.0,0.00019998,2]
[360056019,1746526246631,-450.0,0.00019998,2]
[360056020,1746526246641,-450.0,0.00019998,2]
[360056021,1746526246650,-187.32,0.00019998,2]
[360056022,1746526246660,-450.0,0.00019998,2]
[360056023,1746526246669,-450.0,0.00019998,2]
[360056024,1746526246679,-450.0,0.00019998,2]
[360056025,1746526246689,-450.0,0.00019998,2]
[360056026,1746526246699,-450.0,0.00019998,2]
[360056027,1746526246711,-450.0,0.00019998,2]
[360056028,1746526246721,-451.3,0.00019998,2]
[360056029,1746526246732,-174.18,0.00019998,2]
[360056030,1746526246741,-309.48,0.00019998,2]
[360056031,1746526246750,-450.0,0.00019998,2]
[360056032,1746526246759,-450.0,0.00019998,2]
[360056033,1746526246768,-450.0,0.00019998,2]
[360056034,1746526246779,-450.0,0.00019998,2]
[360056035,1746526246788,-450.0,0.00019998,2]
[360056036,1746526246798,-450.0,0.00019998,2]
[360056037,1746526246807,-450.0,0.00019998,2]
[360056038,1746526246816,-168.19,0.00019998,2]
[360056039,1746526246827,-450.0,0.00019998,2]
[360056040,1746526246838,-450.0,0.00019998,2]
[360056041,1746526246849,-450.0,0.00019998,2]
[360056042,1746526246863,-270.60142383,0.00019998,2]
[360056043,1746526246873,-450.0,0.00019998,2]
[360056044,1746526246883,-450.0,0.00019998,2]
[360056045,1746526246892,-450.0,0.00019998,2]
[360056046,1746526246902,-508.79,0.00019998,2]
[360056047,1746526246912,-450.0,0.00019998,2]
[360056048,1746526246922,-450.0,0.00019998,2]
[360056049,1746526246932,-450.0,0.00019998,2]
[360056050,1746526246941,-450.0,0.00019998,2]
[360056051,1746526246950,-223.45,0.00019998,2]
[360056052,1746526246959,-450.0,0.00019998,2]
[360056053,1746526246969,-336.64,0.00019998,2]
[360056054,1746526246982,-450.0,0.00019998,2]
[360056055,1746526246992,-450.0,0.00019998,2]
[360056056,1746526247001,-450.0,0.00019998,2]
[360056057,1746526247010,-663.82,0.00019998,2]
[360056058,1746526247019,-663.82,0.00019998,2]
[360056059,1746526247029,-663.82,0.00019998,2]
[360056060,1746526247039,-663.82,0.00019998,2]
[360056061,1746526247050,-663.82,0.00019998,2]
[360056062,1746526247060,-450.0,0.00019998,2]
[360056063,1746526247070,-663.82,0.00019998,2]
[360056064,1746526247079,-450.0,0.00019998,2]
[360056065,1746526247088,-663.82,0.00019998,2]
[360056066,1746526247098,-450.0,0.00019998,2]
[360056067,1746526247107,-663.82,0.00019998,2]
[360056068,1746526247116,-450.0,0.00019998,2]
[360056069,1746526247125,-663.82,0.00019998,2]
[360056070,1746526247141,-450.0,0.00019998,2]
[360056071,1746526247151,-450.0,0.00019998,2]
[360056072,1746526247161,-450.0,0.00019998,2]
[360056073,1746526247171,-450.0,0.00019998,2]
[360056074,1746526247183,-445.61036224,0.00019998,2]
[360056075,1746526247193,-450.0,0.00019998,2]
[360056076,1746526247203,-176.62891104,0.00019998,2]
[360056077,1746526247213,-450.0,0.00019998,2]
[360056078,1746526247225,-450.0,0.00019998,2]
[360056079,1746526247235,-389.50189223,0.00019998,2]
[360056080,1746526247244,-469.67,0.00019998,2]
[360056081,1746526247257,-469.67,0.00019998,2]
[360056082,1746526247266,-469.67,0.00019998,2]
[360056083,1746526247276,-469.67,0.00019998,2]
[360056084,1746526247285,-469.67,0.00019998,2]
[360056085,1746526247295,-469.67,0.00019998,2]
[360056086,1746526247304,-469.67,0.00019998,2]
[360056087,1746526247314,-469.67,0.00019998,2]
[360056088,1746526247323,-469.67,0.00019998,2]
[360056089,1746526247332,-469.67,0.00019998,2]
[360056090,1746526247342,-469.67,0.00019998,2]
[360056091,1746526247352,-469.67,0.00019998,2]
[360056092,1746526247361,-450.0,0.00019998,2]
[360056093,1746526247371,-450.0,0.00019998,2]
[360056094,1746526247380,-537.92,0.00019998,2]
[360056095,1746526247389,-673.83,0.00019998,2]
[360056096,1746526247399,-673.83,0.00019998,2]
[360056097,1746526247409,-673.83,0.00019998,2]
[360056098,1746526247419,-673.83,0.00019998,2]
[360056099,1746526247428,-673.83,0.00019998,2]
[360056100,1746526247437,-673.83,0.00019998,2]
[360056101,1746526247447,-673.83,0.00019998,2]
[360056102,1746526247457,-673.83,0.00019998,2]
[360056103,1746526247466,-673.83,0.00019998,2]
[360056104,1746526247477,-499.4,0.00019998,2]
[360056105,1746526247486,-499.4,0.00019998,2]
[360056106,1746526247496,-499.4,0.00019998,2]
[360056107,1746526247505,-499.4,0.00019998,2]
[360056108,1746526247515,-450.0,0.00019998,2]
[360056109,1746526247525,-499.4,0.00019998,2]
[360056110,1746526247534,-378.33673521,0.00019998,2]
[360056111,1746526247544,-499.4,0.00019998,2]
[360056112,1746526247553,-499.4,0.00019998,2]
[360056113,1746526247562,-499.4,0.00019998,2]
[360056114,1746526247572,-499.4,0.00019998,2]
[360056115,1746526247582,-499.4,0.00019998,2]
[360056116,1746526247592,-499.4,0.00019998,2]
[360056117,1746526247601,-499.4,0.00019998,2]
[360056118,1746526247611,-627.07,0.00019998,2]